bitfinex/quotes_BTCUSD_20260101
["timestamp","ask_amount","ask_price","bid_price","bid_amount"]
[1767300262588,0.03456342,88295.0,88294.0,4e-07]
[1767300263011,0.03452061,88295.0,88294.0,4e-07]
[1767300264151,0.03452061,88295.0,88280.0,0.05669313]
[1767300264315,0.02433949,88294.0,88282.0,0.04653183]
[1767300264501,0.02433949,88293.0,88282.0,0.04653183]
[1767300264729,0.01136,88297.0,88293.0,0.00055]
[1767300264888,0.02436579,88296.0,88282.0,0.04653183]
[1767300267711,0.02436579,88296.0,88280.0,0.01138332]
[1767300267712,0.05710804,88295.0,88280.0,5.573e-05]
[1767300267902,0.04578238,88291.0,88280.0,5.573e-05]
[1767300268631,0.01132554,88296.0,88280.0,5.573e-05]
[1767300268836,0.02437399,88295.0,88280.0,5.573e-05]
[1767300269149,0.07015637,88295.0,88280.0,5.573e-05]
[1767300269364,0.02437399,88294.0,88280.0,5.573e-05]
[1767300269699,0.02437399,88294.0,88278.0,0.01512694]
[1767300270026,0.02437399,88294.0,88279.0,0.01132772]
[1767300270158,0.02437399,88294.0,88278.0,0.01523265]
[1767300270595,0.02437399,88294.0,88281.0,0.04653183]
[1767300270750,0.02437399,88296.0,88281.0,0.04653183]
[1767300270949,0.02437399,88295.0,88281.0,0.04653183]
[1767300271195,0.02437399,88294.0,88281.0,0.04653183]
[1767300271424,0.02437399,88293.0,88281.0,0.04653183]
[1767300271617,0.02437399,88292.0,88281.0,0.04653183]
[1767300271820,0.01136,88297.0,88281.0,0.04653183]
[1767300272058,0.02437688,88296.0,88281.0,0.04653183]
[1767300273837,0.02437688,88296.0,88284.0,0.04653183]
[1767300274357,0.02437688,88295.0,88284.0,0.04653183]
[1767300274556,0.02437688,88294.0,88284.0,0.04653183]
[1767300274700,0.01132502,88300.0,88284.0,0.04653183]
[1767300274899,0.03497823,88299.0,88284.0,0.04653183]
[1767300275102,0.03497823,88298.0,88284.0,0.04653183]
[1767300275341,0.02439161,88297.0,88284.0,0.04653183]
[1767300275567,0.02439161,88296.0,88284.0,0.04653183]
[1767300275769,0.02439161,88295.0,88284.0,0.04653183]
[1767300275965,0.02439161,88294.0,88284.0,0.04653183]
[1767300276261,0.01132502,88300.0,88284.0,0.04653183]
[1767300276494,0.03500234,88299.0,88284.0,0.04653183]
[1767300276703,0.02440841,88298.0,88284.0,0.04653183]
[1767300276856,0.02440841,88297.0,88284.0,0.04653183]
[1767300277054,0.02440841,88296.0,88284.0,0.04653183]
[1767300277264,0.02440841,88295.0,88284.0,0.04653183]
[1767300277467,0.02440841,88294.0,88284.0,0.04653183]
[1767300277674,0.02440841,88293.0,88284.0,0.04653183]
[1767300277900,0.01132502,88300.0,88284.0,0.04653183]
[1767300278107,0.03502176,88299.0,88284.0,0.04653183]
[1767300278304,0.03503454,88298.0,88284.0,0.04653183]
[1767300278503,0.03503454,88297.0,88284.0,0.04653183]
[1767300278701,0.02442196,88296.0,88284.0,0.04653183]
[1767300278901,0.02442196,88295.0,88284.0,0.04653183]
[1767300279105,0.02442196,88294.0,88284.0,0.04653183]
[1767300279318,0.02442196,88293.0,88284.0,0.04653183]
[1767300279526,0.03057639,88301.0,88293.0,0.00055]
[1767300279729,0.01061264,88300.0,88293.0,0.00055]
[1767300279930,0.01061264,88299.0,88293.0,0.00055]
[1767300280142,0.01061264,88298.0,88289.0,0.04653183]
[1767300280348,0.0113249,88301.0,88289.0,0.04653183]
[1767300280549,0.01061242,88300.0,88289.0,0.04653183]
[1767300280763,0.01061242,88299.0,88289.0,0.04653183]
[1767300280981,0.01061242,88298.0,88289.0,0.04653183]
[1767300281316,0.02268477,88302.0,88289.0,0.01153182]
[1767300281539,0.01061227,88301.0,88289.0,0.01153182]
[1767300281747,0.01061227,88300.0,88289.0,0.01153182]
[1767300281927,0.01061227,88299.0,88289.0,0.01153182]
[1767300282161,0.01061227,88298.0,88289.0,0.01153182]
[1767300282373,0.02268477,88302.0,88289.0,0.00395767]
[1767300282579,0.01061211,88301.0,88289.0,0.00395767]
[1767300282828,0.01061211,88300.0,88289.0,0.00395767]
[1767300283032,0.01061211,88299.0,88289.0,0.00395767]
[1767300283239,0.02268477,88302.0,88289.0,0.00395767]
[1767300283419,0.02268477,88302.0,88287.0,0.01136]
[1767300283420,0.01061198,88301.0,88287.0,0.01136]
[1767300283650,0.01061198,88300.0,88287.0,0.01136]
[1767300283850,0.01061198,88299.0,88287.0,0.01136]
[1767300284059,0.01061198,88298.0,88287.0,0.01136]
[1767300284265,0.02268477,88302.0,88287.0,0.01136]
[1767300284470,0.01061187,88301.0,88287.0,0.01136]
[1767300284646,0.01061187,88300.0,88287.0,0.01136]
[1767300284972,0.01061187,88299.0,88287.0,0.01136]
[1767300285152,0.01061187,88298.0,88287.0,0.01136]
[1767300285361,0.02268477,88302.0,88287.0,0.01136]
[1767300285562,0.0106118,88301.0,88287.0,0.01136]
[1767300285778,0.0106118,88300.0,88287.0,0.01136]
[1767300285977,0.0106118,88299.0,88287.0,0.01136]
[1767300286186,0.0106118,88298.0,88287.0,0.01136]
[1767300286434,0.02268477,88302.0,88287.0,0.01136]
[1767300286661,0.01061187,88301.0,88287.0,0.01136]
[1767300286837,0.01061187,88300.0,88287.0,0.01136]
[1767300287052,0.01061187,88299.0,88287.0,0.01136]
[1767300287243,0.01061187,88298.0,88287.0,0.01136]
[1767300287384,0.04578238,88301.0,88287.0,0.01136]
[1767300287601,0.01061175,88300.0,88287.0,0.01136]
[1767300287809,0.01061175,88299.0,88287.0,0.01136]
[1767300288009,0.01061175,88298.0,88287.0,0.01136]
[1767300288251,0.04578238,88301.0,88287.0,0.01136]
[1767300288475,0.01061177,88300.0,88287.0,0.01136]
[1767300288677,0.01061177,88299.0,88287.0,0.01136]
[1767300288815,0.01061177,88298.0,88287.0,0.01136]
[1767300289133,0.04578238,88301.0,88287.0,0.05789183]
[1767300289335,0.01061177,88300.0,88287.0,0.05789183]
[1767300289588,0.01061177,88299.0,88288.0,0.01132656]
[1767300289870,0.01132451,88304.0,88289.0,0.04653183]
[1767300290173,0.01061201,88303.0,88289.0,0.04653183]
[1767300290327,0.01061201,88302.0,88289.0,0.04653183]
[1767300290578,0.01132438,88305.0,88289.0,0.04653183]
[1767300290579,0.01061201,88301.0,88289.0,0.04653183]
[1767300290766,0.05710676,88305.0,88289.0,0.04653183]
[1767300290968,0.01061149,88304.0,88289.0,0.04653183]
[1767300291172,0.01061149,88303.0,88289.0,0.04653183]
[1767300291419,0.01061149,88302.0,88289.0,0.04653183]
[1767300291632,0.44113969,88300.0,88289.0,0.04653183]
[1767300291757,0.02444808,88299.0,88289.0,0.04653183]
[1767300292403,0.03057639,88304.0,88289.0,0.04653183]
[1767300292404,0.02444808,88298.0,88289.0,0.04653183]
[1767300292606,0.02444808,88297.0,88289.0,0.04653183]
[1767300292809,0.02444808,88296.0,88289.0,0.04653183]
[1767300293031,0.02444808,88295.0,88289.0,0.04653183]
[1767300293395,0.02444808,88294.0,88289.0,0.04653183]
[1767300293611,0.03057639,88303.0,88294.0,0.00055]
[1767300293820,0.03505758,88302.0,88294.0,0.01136]
[1767300294025,0.03505758,88301.0,88294.0,0.01136]
[1767300294243,0.02444694,88300.0,88294.0,0.01136]
[1767300294454,0.02444694,88299.0,88294.0,0.01136]
[1767300294666,0.03057639,88303.0,88294.0,0.01136]
[1767300294667,0.02444694,88298.0,88294.0,0.01136]
[1767300294899,0.03057639,88303.0,88294.0,0.01136]
[1767300294900,0.02444694,88297.0,88294.0,0.01136]
[1767300295113,0.02444694,88296.0,88294.0,0.002908]
[1767300295327,0.02444694,88295.0,88294.0,0.002908]
[1767300296929,0.02389694,88295.0,88287.0,0.01136]
[1767300297119,0.01132502,88300.0,88287.0,0.01136]
[1767300297246,0.44113969,88300.0,88287.0,0.01136]
[1767300297442,0.45246471,88300.0,88287.0,0.01136]
[1767300297745,0.49033187,88300.0,88287.0,0.01136]
[1767300301536,0.04919218,88300.0,88287.0,0.01136]
[1767300301748,0.49033187,88300.0,88287.0,0.01136]
[1767300302140,0.04919218,88300.0,88287.0,0.01136]
[1767300302377,0.49033187,88300.0,88287.0,0.01136]
[1767300306906,0.40892479,88406.0,88294.0,0.04715837]
[1767300306907,0.03057639,88307.0,88294.0,0.04715837]
[1767300307080,0.44133969,88310.0,88295.0,0.05851837]
[1767300307282,0.01060286,88309.0,88296.0,0.01136]
[1767300307635,0.44133969,88310.0,88296.0,0.01136]
[1767300307837,0.01060017,88309.0,88296.0,0.01136]
[1767300308135,0.44133969,88310.0,88296.0,0.01136]
[1767300308740,0.02441884,88309.0,88296.0,0.01136]
[1767300311477,0.02441884,88309.0,88296.0,0.02268554]
[1767300311616,0.04919218,88308.0,88297.0,0.02098804]
[1767300311815,0.04919218,88308.0,88290.0,0.0002]
[1767300311816,0.00055,88297.0,88290.0,0.0002]
[1767300312074,0.06051656,88305.0,88290.0,0.0002]
[1767300312075,0.44113969,88300.0,88290.0,0.0002]
[1767300313046,0.04919218,88305.0,88290.0,0.0002]
[1767300313274,0.44113969,88300.0,88290.0,0.0002]
[1767300314310,0.44113969,88300.0,88290.0,0.01152631]
[1767300315794,0.04919218,88305.0,88290.0,0.01152631]
[1767300315978,0.44113969,88300.0,88290.0,0.01152631]
[1767300316183,0.44113969,88300.0,88290.0,0.0002]
[1767300320861,0.06051656,88305.0,88291.0,0.01136]
[1767300321105,0.04919218,88299.0,88291.0,0.01081]
[1767300322583,0.04919218,88299.0,88290.0,0.0002]
[1767300322584,0.04919218,88299.0,88292.0,0.01136]
[1767300322973,0.04919218,88299.0,88293.0,0.01136]
[1767300324503,0.05883964,88305.0,88293.0,0.01136]
[1767300324708,0.44113969,88303.0,88293.0,0.01136]
[1767300324940,0.02440814,88302.0,88293.0,0.01136]
[1767300326504,0.04751526,88301.0,88290.0,0.0002]
[1767300326623,0.04751526,88294.0,88290.0,0.0002]
[1767300327881,0.04751526,88298.0,88290.0,0.0002]
[1767300328462,0.05884054,88298.0,88290.0,0.0002]
[1767300328664,0.04751526,88298.0,88290.0,0.0002]
[1767300328863,0.04751526,88298.0,88287.0,0.00390051]
[1767300328864,0.05884054,88298.0,88287.0,0.00390051]
[1767300329175,0.04751526,88298.0,88287.0,0.00390051]
[1767300335808,0.04751526,88298.0,88283.0,0.04536]
[1767300335809,0.44113969,88293.0,88282.0,0.01136]
[1767300337088,0.04751526,88296.0,88282.0,0.01136]
[1767300337730,0.44113969,88292.0,88282.0,0.01136]
[1767300338427,0.04751526,88296.0,88282.0,0.01136]
[1767300339327,0.04751526,88296.0,88283.0,0.00451321]
[1767300339932,0.04751526,88296.0,88282.0,0.01136]
[1767300342078,0.01132438,88305.0,88296.0,0.000549]
[1767300342219,0.02441618,88304.0,88293.0,0.01136]
[1767300342426,0.02441618,88303.0,88293.0,0.01136]
[1767300342626,0.02441618,88302.0,88293.0,0.00370088]
[1767300342831,0.02441618,88301.0,88293.0,0.00370088]
[1767300343038,0.02441618,88300.0,88293.0,0.00370088]
[1767300343266,9.69e-05,88303.0,88300.0,0.000549]
[1767300343471,0.024421,88302.0,88293.0,0.00370088]
[1767300343673,0.0245179,88302.0,88293.0,0.00370088]
[1767300343937,9.69e-05,88302.0,88294.0,0.04881092]
[1767300344134,0.0001473,88308.0,88302.0,0.0004531]
[1767300344310,0.0001473,88308.0,88303.0,0.01136]
[1767300346920,0.0001473,88308.0,88303.0,0.011263]
[1767300346921,0.04766256,88308.0,88303.0,0.011263]
[1767300349567,0.05898656,88308.0,88304.0,0.01136]
[1767300349751,0.05898656,88308.0,88289.0,0.06013735]
[1767300349752,0.04751526,88306.0,88303.0,0.01136]
[1767300355724,0.0001473,88308.0,88303.0,0.01136]
[1767300355885,0.04945277,88308.0,88303.0,0.01136]
[1767300356086,0.02441472,88307.0,88303.0,0.01136]
[1767300356500,0.02441472,88307.0,88301.0,0.01136]
[1767300357089,0.03573885,88307.0,88289.0,0.01132643]
[1767300357286,0.04930547,88307.0,88290.0,0.02268631]
[1767300357842,0.04930547,88307.0,88291.0,0.01132618]
[1767300358265,0.02441674,88306.0,88291.0,0.01132618]
[1767300358494,0.07372221,88306.0,88291.0,0.01132618]
[1767300358679,0.04930547,88306.0,88291.0,0.01132618]
[1767300358979,0.04930547,88306.0,88290.0,0.02268631]
[1767300359160,0.04930547,88306.0,88291.0,0.01132618]
[1767300359518,0.04930547,88306.0,88290.0,0.02268631]
[1767300359723,0.04930547,88306.0,88291.0,0.01132618]
[1767300359970,0.04930547,88306.0,88290.0,0.02268631]
[1767300360381,0.04930547,88306.0,88290.0,0.01136]
[1767300360685,0.04930547,88306.0,88290.0,0.02268631]
[1767300360857,0.04930547,88306.0,88290.0,0.01136]
[1767300361867,0.04930547,88306.0,88291.0,0.04599983]
[1767300365160,0.06276114,88306.0,88291.0,0.04599983]
[1767300367325,0.02442612,88305.0,88291.0,0.04599983]
[1767300367482,0.02442612,88305.0,88295.0,0.01132566]
[1767300367670,0.0001473,88308.0,88296.0,0.01132554]
[1767300367867,0.0001473,88308.0,88298.0,0.01132528]
[1767300368272,0.0001473,88308.0,88299.0,0.01132515]
[1767300368711,0.0001473,88308.0,88298.0,0.01132528]
[1767300369493,0.0001473,88308.0,88299.0,0.01132515]
[1767300370185,0.0001473,88308.0,88297.0,0.02268541]
[1767300370672,0.0001473,88308.0,88297.0,0.01136]
[1767300370847,0.0001473,88308.0,88297.0,0.02268541]
[1767300371442,0.0001473,88308.0,88298.0,0.01132528]
[1767300373795,0.0001473,88308.0,88300.0,0.05732485]
[1767300374018,0.0001473,88317.0,88303.0,0.04599983]
[1767300374214,0.0001473,88317.0,88305.0,0.04599983]
[1767300374953,0.0001473,88317.0,88305.0,0.05732421]
[1767300375749,0.0001473,88317.0,88314.0,0.04599983]
[1767300375750,3e-07,88317.0,88314.0,0.04599983]
[1767300376064,3e-07,88317.0,88315.0,0.05735983]
[1767300376457,3e-07,88317.0,88315.0,0.01136]
[1767300377790,3e-07,88317.0,88316.0,0.04599983]
[1767300378529,3e-07,88317.0,88315.0,0.01136]
[1767300378692,3e-07,88317.0,88316.0,0.01136]
[1767300378892,3e-07,88317.0,88316.0,0.05735983]
[1767300384678,3e-07,88317.0,88316.0,0.01136]
[1767300391088,3e-07,88317.0,88316.0,0.05639237]
[1767300392953,3e-07,88317.0,88316.0,0.01136]
[1767300393292,3e-07,88317.0,88316.0,0.05639237]
[1767300394151,3e-07,88317.0,88316.0,0.01136]
[1767300399777,3e-07,88317.0,88316.0,0.05639237]
[1767300403448,3e-07,88317.0,88316.0,0.05865538]
[1767300403613,3e-07,88317.0,88316.0,0.05639237]
[1767300409980,8.447e-05,88326.0,88323.0,0.01132207]
[1767300410183,4.313e-05,88326.0,88324.0,0.01136]
[1767300410784,4.313e-05,88326.0,88324.0,0.06767622]
[1767300414331,4.313e-05,88326.0,88324.0,0.011067]
[1767300414537,4.313e-05,88326.0,88324.0,0.0676762]
[1767300416359,4.313e-05,88326.0,88324.0,0.011067]
[1767300416672,0.04832994,88326.0,88325.0,0.01136]
[1767300420311,4.313e-05,88326.0,88325.0,0.01136]
[1767300422830,0.04828681,88325.0,88313.0,0.01132336]
[1767300423029,0.04828681,88325.0,88314.0,0.02268323]
[1767300423232,4.313e-05,88326.0,88314.0,0.02268323]
[1767300423433,4.313e-05,88326.0,88313.0,0.01132336]
[1767300423434,0.04828681,88325.0,88315.0,0.01136]
[1767300423957,0.04828681,88325.0,88316.0,0.01136]
[1767300424456,0.05960876,88324.0,88317.0,0.01136]
[1767300424655,0.05960876,88324.0,88306.0,0.01132425]
[1767300424656,0.04863908,88324.0,88318.0,0.01136]
[1767300430031,0.02863908,88324.0,88318.0,0.01136]
[1767300430980,0.02863908,88324.0,88317.0,0.01136]
[1767300436296,0.02863908,88324.0,88317.0,0.00811241]
[1767300438938,0.00035227,88324.0,88317.0,0.00811241]
[1767300443001,0.00035227,88324.0,88317.0,0.00045389]
[1767300447364,2.7e-07,88324.0,88317.0,0.00045389]
[1767300450583,2.7e-07,88324.0,88317.0,0.04627976]
[1767300459901,2.7e-07,88324.0,88317.0,0.00045389]
[1767300485917,2.7e-07,88324.0,88318.0,0.04890332]
[1767300486117,4.313e-05,88326.0,88318.0,0.04890332]
[1767300486445,8.697e-05,88326.0,88318.0,0.04890332]
[1767300488252,9.7e-07,88326.0,88318.0,0.04890332]
[1767300503915,0.0244556,88326.0,88318.0,0.04890332]
[1767300504119,9.7e-07,88326.0,88318.0,0.04890332]
[1767300505505,9.7e-07,88326.0,88318.0,0.04886071]
[1767300508605,0.02445694,88326.0,88318.0,0.04886071]
[1767300508801,9.7e-07,88326.0,88318.0,0.04886071]
[1767300512444,9.7e-07,88326.0,88317.0,0.00045389]
[1767300512445,0.01132182,88325.0,88317.0,0.00045389]
[1767300512808,9.7e-07,88326.0,88317.0,0.00045389]
[1767300512809,0.02446137,88324.0,88317.0,0.00045389]
[1767300513073,9.7e-07,88326.0,88317.0,0.00045389]
[1767300514303,0.02446233,88326.0,88317.0,0.00045389]
[1767300514509,0.02446136,88325.0,88317.0,0.00045389]
[1767300514711,0.02446136,88324.0,88317.0,0.00045389]
[1767300514909,9.7e-07,88326.0,88317.0,0.00045389]
[1767300516836,0.02446228,88326.0,88317.0,0.00045389]
[1767300517257,0.02446131,88325.0,88317.0,0.00045389]
[1767300517541,0.02446131,88324.0,88317.0,0.00045389]
[1767300517915,9.7e-07,88326.0,88317.0,0.00045389]
[1767300518034,9.7e-07,88326.0,88317.0,0.00041128]
[1767300519068,0.02446171,88326.0,88317.0,0.00041128]
[1767300519269,0.02446074,88325.0,88317.0,0.00041128]
[1767300519637,0.02446074,88324.0,88317.0,0.00041128]
[1767300519807,9.7e-07,88326.0,88317.0,0.00041128]
[1767300521808,0.02446248,88326.0,88317.0,0.00041128]
[1767300522067,0.02446151,88325.0,88317.0,0.00041128]
[1767300522315,0.02446151,88324.0,88317.0,0.00041128]
[1767300522495,9.7e-07,88326.0,88317.0,0.00041128]
[1767300523023,9.7e-07,88326.0,88318.0,0.01136]
[1767300523174,0.02446413,88326.0,88318.0,0.01136]
[1767300523378,0.02446316,88325.0,88318.0,0.01136]
[1767300523617,0.02446316,88324.0,88318.0,0.01136]
[1767300523818,9.7e-07,88326.0,88318.0,0.01136]
[1767300525612,0.02446441,88326.0,88318.0,0.01136]
[1767300525810,0.02446344,88325.0,88318.0,0.01136]
[1767300526016,0.02446344,88324.0,88318.0,0.01136]
[1767300526221,9.7e-07,88326.0,88318.0,0.01136]
[1767300526816,0.02446482,88326.0,88318.0,0.01136]
[1767300527067,0.02446385,88325.0,88318.0,0.01136]
[1767300527262,0.02446385,88324.0,88318.0,0.01136]
[1767300527455,9.7e-07,88326.0,88318.0,0.01136]
[1767300535650,9.7e-07,88326.0,88318.0,0.00285925]
[1767300537060,0.02446471,88326.0,88318.0,0.00285925]
[1767300537206,0.02447583,88325.0,88318.0,0.00285925]
[1767300537436,0.02447583,88324.0,88318.0,0.00285925]
[1767300537691,9.7e-07,88326.0,88318.0,0.00285925]
[1767300538866,0.02447714,88326.0,88318.0,0.00285925]
[1767300539066,0.02447617,88325.0,88318.0,0.00285925]
[1767300539292,0.02447617,88324.0,88318.0,0.00285925]
[1767300539510,9.7e-07,88326.0,88318.0,0.00285925]
[1767300540337,9.7e-07,88326.0,88318.0,0.04933799]
[1767300548327,9.7e-07,88326.0,88319.0,0.01136]
[1767300549926,9.7e-07,88326.0,88319.0,0.05783874]
[1767300550817,9.7e-07,88326.0,88320.0,0.01136]
[1767300551817,9.7e-07,88326.0,88318.0,0.01136]
[1767300552016,0.04558852,88326.0,88318.0,0.01136]
[1767300552202,0.02447623,88325.0,88318.0,0.01136]
[1767300560418,0.02447623,88324.0,88318.0,0.01136]
[1767300560618,9.7e-07,88326.0,88318.0,0.01136]
[1767300560815,0.02448606,88326.0,88318.0,0.01136]
[1767300562975,0.02448509,88325.0,88318.0,0.01136]
[1767300563196,0.02448509,88324.0,88318.0,0.01136]
[1767300563426,0.02448509,88323.0,88318.0,0.01136]
[1767300563660,9.7e-07,88326.0,88318.0,0.01136]
[1767300569452,9.7e-07,88326.0,88312.0,0.04647874]
[1767300569601,9.7e-07,88326.0,88316.0,0.01136]
[1767300570553,0.02448608,88326.0,88317.0,0.01136]
[1767300570751,0.02448511,88325.0,88317.0,0.01136]
[1767300570964,0.02448511,88324.0,88317.0,0.01136]
[1767300571128,9.7e-07,88326.0,88317.0,0.01136]
[1767300571731,0.02447501,88326.0,88317.0,0.01136]
[1767300571936,0.02447404,88325.0,88317.0,0.01136]
[1767300572223,0.02447404,88324.0,88317.0,0.01136]
[1767300572428,9.7e-07,88326.0,88324.0,0.000111]
[1767300572816,9.7e-07,88326.0,88317.0,0.01136]
[1767300583554,0.02447504,88326.0,88317.0,0.01136]
[1767300583755,0.02447407,88325.0,88317.0,0.01136]
[1767300583991,0.02447407,88324.0,88317.0,0.01136]
[1767300584325,9.7e-07,88326.0,88317.0,0.01136]
[1767300588025,9.7e-07,88326.0,88317.0,0.01021789]
[1767300593528,9.7e-07,88326.0,88317.0,0.00251962]
[1767300594070,9.7e-07,88326.0,88317.0,0.01136]
[1767300595810,9.7e-07,88326.0,88318.0,0.0492322]
[1767300596193,0.02447464,88326.0,88318.0,0.0492322]
[1767300596364,0.02447367,88325.0,88318.0,0.0492322]
[1767300596567,0.02447367,88324.0,88318.0,0.0492322]
[1767300596800,9.7e-07,88326.0,88318.0,0.0492322]
[1767300602305,0.02447469,88326.0,88318.0,0.0492322]
[1767300602505,0.02447372,88325.0,88318.0,0.0492322]
[1767300602744,0.02447372,88324.0,88318.0,0.0492322]
[1767300602900,9.7e-07,88326.0,88318.0,0.0492322]
[1767300604124,9.7e-07,88326.0,88318.0,0.04780476]
[1767300612087,0.02447755,88326.0,88318.0,0.04780476]
[1767300612264,0.02447658,88325.0,88318.0,0.04780476]
[1767300612463,0.02447658,88324.0,88318.0,0.04780476]
[1767300612768,9.7e-07,88326.0,88318.0,0.04780476]
[1767300618073,9.7e-07,88326.0,88318.0,0.04637761]
[1767300620520,9.7e-07,88326.0,88318.0,0.04552145]
[1767300622812,9.7e-07,88326.0,88318.0,0.04495062]
[1767300631304,9.7e-07,88326.0,88319.0,0.00332525]
[1767300634208,9.7e-07,88326.0,88317.0,0.01136]
[1767300635162,0.02447522,88326.0,88317.0,0.01136]
[1767300635371,0.02447425,88325.0,88317.0,0.01136]
[1767300635595,9.7e-07,88326.0,88317.0,0.01136]
[1767300639698,0.02446878,88326.0,88317.0,0.01136]
[1767300639924,0.02446781,88325.0,88317.0,0.01136]
[1767300640144,9.7e-07,88326.0,88317.0,0.01136]
[1767300645507,0.02446893,88326.0,88317.0,0.01136]
[1767300645718,0.02446796,88325.0,88317.0,0.01136]
[1767300646028,9.7e-07,88326.0,88317.0,0.01136]
[1767300648685,0.02446282,88326.0,88317.0,0.01136]
[1767300648906,0.02446185,88325.0,88317.0,0.01136]
[1767300649110,9.7e-07,88326.0,88317.0,0.01136]
[1767300655190,9.7e-07,88326.0,88318.0,0.04710464]
[1767300658076,9.7e-07,88326.0,88318.0,0.04653393]
[1767300660628,9.7e-07,88326.0,88317.0,0.01136]
[1767300662732,9.7e-07,88326.0,88317.0,0.00370298]
[1767300663266,0.02446257,88326.0,88317.0,0.00370298]
[1767300663469,0.0244616,88325.0,88317.0,0.00370298]
[1767300663711,9.7e-07,88326.0,88317.0,0.00370298]
[1767300665751,0.03578933,88326.0,88317.0,0.00370298]
[1767300665953,0.02446667,88325.0,88317.0,0.00370298]
[1767300666206,9.7e-07,88326.0,88317.0,0.00370298]
[1767300666505,0.02446766,88326.0,88317.0,0.00370298]
[1767300666868,0.03578935,88326.0,88317.0,0.00370298]
[1767300667082,0.02446669,88325.0,88317.0,0.00370298]
[1767300668723,0.01132266,88326.0,88317.0,0.00370298]
[1767300668901,0.02446485,88325.0,88317.0,0.00370298]
[1767300669520,0.02446485,88325.0,88317.0,0.0028345]
[1767300669683,0.01132266,88326.0,88317.0,0.0028345]
[1767300670057,0.02446481,88325.0,88317.0,0.0028345]
[1767300672222,9.7e-07,88326.0,88317.0,0.0028345]
[1767300672591,0.0244653,88326.0,88317.0,0.0028345]
[1767300674422,0.02446433,88325.0,88317.0,0.0028345]
[1767300674624,9.7e-07,88326.0,88317.0,0.0028345]
[1767300675653,0.02446538,88326.0,88317.0,0.0028345]
[1767300675836,0.02446441,88325.0,88317.0,0.0028345]
[1767300676040,9.7e-07,88326.0,88317.0,0.0028345]
[1767300678847,0.02446569,88326.0,88317.0,0.0028345]
[1767300679033,0.02446472,88325.0,88317.0,0.0028345]
[1767300679236,0.02446472,88324.0,88317.0,0.0028345]
[1767300679437,9.7e-07,88326.0,88317.0,0.0028345]
[1767300680441,9.7e-07,88326.0,88309.0,0.02446781]
[1767300680442,0.01132297,88316.0,88309.0,0.02446781]
[1767300680638,0.01132297,88316.0,88304.0,0.0001473]
[1767300680639,0.06794403,88308.0,88304.0,0.0001473]
[1767300680847,0.02446195,88315.0,88304.0,0.0001473]
[1767300680848,0.01132374,88310.0,88304.0,0.0001473]
[1767300681047,0.01132361,88311.0,88304.0,0.0001473]
[1767300681303,0.01132348,88312.0,88304.0,0.0001473]
[1767300681464,0.05819559,88313.0,88304.0,0.0001473]
[1767300681668,0.01132348,88312.0,88304.0,0.0001473]
[1767300681963,0.04687223,88313.0,88304.0,0.0001473]
[1767300682161,0.05819559,88313.0,88304.0,0.0001473]
[1767300682366,0.04687223,88313.0,88304.0,0.0001473]
[1767300685403,0.04687223,88313.0,88300.0,9.077e-05]
[1767300685575,0.44086991,88310.0,88300.0,9.077e-05]
[1767300685774,0.44086991,88310.0,88298.0,0.04997944]
[1767300687790,0.04687223,88313.0,88298.0,0.04997944]
[1767300687996,0.44086991,88310.0,88298.0,0.04997944]
[1767300688979,0.44032091,88310.0,88298.0,0.06130472]
[1767300689198,0.44032091,88310.0,88298.0,0.04997944]
[1767300691987,0.00041633,88309.0,88298.0,0.04997944]
[1767300692535,0.00041633,88309.0,88293.0,0.01334989]
[1767300692536,0.13648772,88299.0,88293.0,0.01334989]
[1767300692897,0.13648772,88299.0,88259.0,0.1477]
[1767300692898,0.02268528,88298.0,88281.0,0.04997944]
[1767300693058,0.01132541,88297.0,88281.0,0.04997944]
[1767300693444,0.03401069,88297.0,88281.0,0.04997944]
[1767300693654,0.02268528,88297.0,88281.0,0.05033171]
[1767300693852,0.01132541,88297.0,88281.0,0.05033171]
[1767300694167,0.04533837,88297.0,88281.0,0.05033171]
[1767300695173,0.02268528,88298.0,88281.0,0.05033171]
[1767300695375,0.03401296,88296.0,88281.0,0.05033171]
[1767300695795,0.03401296,88296.0,88281.0,0.06165917]
[1767300696210,0.03401296,88296.0,88282.0,0.04997944]
[1767300696455,0.03401296,88296.0,88285.0,0.04997944]
[1767300701135,0.03401296,88296.0,88287.0,0.04997944]
[1767300701545,0.03401296,88296.0,88287.0,0.03904644]
[1767300705151,0.03401296,88296.0,88287.0,0.01904644]
[1767300705347,0.03346296,88296.0,88288.0,0.04997944]
[1767300709615,0.01136,88300.0,88290.0,0.04997944]
[1767300709799,0.01136,88300.0,88291.0,0.04997944]
[1767300710002,0.03400942,88298.0,88291.0,0.04997944]
[1767300713154,0.03400942,88298.0,88291.0,0.02897944]
[1767300720313,0.02897944,88304.0,88291.0,0.02897944]
[1767300720644,0.02442599,88303.0,88291.0,0.02897944]
[1767300721287,0.05340543,88302.0,88291.0,0.02897944]
[1767300721417,0.02442599,88301.0,88291.0,0.02897944]
[1767300721826,0.02268438,88305.0,88291.0,0.02897944]
[1767300722046,0.02897944,88300.0,88291.0,0.02897944]
[1767300722243,0.02443525,88299.0,88291.0,0.02897944]
[1767300722807,0.02897944,88299.0,88291.0,0.02897944]
[1767300725343,0.02445199,88298.0,88291.0,0.02897944]
[1767300725748,0.02897944,88299.0,88291.0,0.02897944]
[1767300726148,0.02445267,88298.0,88291.0,0.02897944]
[1767300734657,0.02445267,88298.0,88289.0,0.01136]
[1767300735929,0.02445267,88298.0,88289.0,0.010811]
[1767300736879,0.02445267,88297.0,88289.0,0.010811]
[1767300737030,0.05834809,88303.0,88289.0,0.010811]
[1767300737231,0.07148488,88302.0,88289.0,0.010811]
[1767300737430,0.02446143,88301.0,88289.0,0.010811]
[1767300743743,0.02446143,88301.0,88290.0,0.04976614]
[1767300743945,0.02446143,88300.0,88290.0,0.04976614]
[1767300744147,0.02446143,88299.0,88290.0,0.04976614]
[1767300744306,0.02446143,88298.0,88290.0,0.04976614]
[1767300744505,0.02446143,88297.0,88290.0,0.04976614]
[1767300744764,0.0918665,88306.0,88290.0,0.04976614]
[1767300744976,0.03507968,88305.0,88290.0,0.04976614]
[1767300745178,0.03507968,88304.0,88290.0,0.04976614]
[1767300745507,0.02446237,88303.0,88290.0,0.04976614]
[1767300745673,0.02446237,88302.0,88290.0,0.04976614]
[1767300745883,0.02446237,88301.0,88290.0,0.04976614]
[1767300746038,0.02446237,88300.0,88290.0,0.04976614]
[1767300746241,0.02446237,88299.0,88290.0,0.04976614]
[1767300746443,0.02446237,88298.0,88290.0,0.04976614]
[1767300746664,0.02446237,88297.0,88290.0,0.04948099]
[1767300746978,0.0918665,88306.0,88290.0,0.0608073]
[1767300747137,0.03507975,88305.0,88290.0,0.0608073]
[1767300747353,0.03507975,88304.0,88290.0,0.04948099]
[1767300747555,0.0114713,88308.0,88290.0,0.04948099]
[1767300747556,0.02219283,88303.0,88298.0,0.04976614]
[1767300747787,0.0001473,88308.0,88300.0,0.06109116]
[1767300748144,0.0001473,88308.0,88300.0,0.04976614]